fUSD/lending_fUSD_20240624
["ID","MTS","AMOUNT","RATE_DAILY","PERIOD"]
[330282320,1719227446491,-170.04121699,0.00019352,2]
[330282321,1719227446501,-3760.72128107,0.00019352,2]
[330282322,1719227446510,-490.0,0.000194,2]
[330282323,1719227446519,-2776.13830779,0.00019413,2]
[330282324,1719227446529,-622.21690927,0.00019425,2]
[330282325,1719227446538,-622.21690927,0.00019425,2]
[330282326,1719227446547,-151.0,0.00019446,2]
[330282327,1719227446557,-151.0,0.00019446,2]
[330282328,1719227446566,-151.0,0.00019446,2]
[330282329,1719227446576,-151.0,0.00019446,2]
[330282330,1719227446588,-151.0,0.00019446,2]
[330282331,1719227446597,-151.0,0.00019446,2]
[330282332,1719227446607,-151.0,0.00019446,2]
[330282333,1719227446617,-151.0,0.00019446,2]
[330282334,1719227446626,-151.0,0.00019446,2]
[330282335,1719227446636,-151.0,0.00019446,2]
[330282336,1719227446645,-151.0,0.00019446,2]
[330282337,1719227446654,-151.0,0.00019446,2]
[330282338,1719227446663,-356.798257,0.00019446,2]
[330282339,1719227446673,-151.0,0.00019446,2]
[330282340,1719227446683,-970.890068,0.00019446,2]
[330282341,1719227446692,-151.0,0.00019446,2]
[330282342,1719227446702,-151.0,0.00019446,2]
[330282343,1719227446711,-538.933405,0.00019446,2]
[330282344,1719227446721,-151.0,0.00019446,2]
[330282345,1719227446730,-538.933405,0.00019446,2]
[330282346,1719227446739,-151.0,0.00019446,2]
[330282347,1719227446748,-151.0,0.00019446,2]
[330282348,1719227446758,-151.0,0.00019446,2]
[330282349,1719227446767,-151.0,0.00019446,2]
[330282350,1719227446776,-151.0,0.00019446,2]
[330282351,1719227446786,-151.0,0.00019446,2]
[330282352,1719227446795,-345.118452,0.00019446,2]
[330282353,1719227446804,-156.406068,0.00019446,2]
[330282354,1719227446814,-345.118452,0.00019446,2]
[330282355,1719227446823,-151.0,0.00019446,2]
[330282356,1719227446835,-151.0,0.00019446,2]
[330282357,1719227446844,-237.05867,0.00019446,2]
[330282358,1719227446853,-237.05867,0.00019446,2]
[330282359,1719227446862,-15761.2266984,0.00019446,2]
[330282360,1719227446871,-151.0,0.00019446,2]
[330282361,1719227446880,-151.0,0.00019446,2]
[330282362,1719227446889,-151.0,0.00019446,2]
[330282363,1719227446899,-2509.026784,0.00019446,2]
[330282364,1719227446908,-2509.026784,0.00019446,2]
[330282365,1719227446918,-151.0,0.00019446,2]
[330282366,1719227446927,-151.0,0.00019446,2]
[330282367,1719227446937,-297.28149,0.00019446,2]
[330282368,1719227446946,-297.28149,0.00019446,2]
[330282369,1719227446957,-163.000983,0.00019446,2]
[330282370,1719227446968,-151.0,0.00019446,2]
[330282371,1719227446979,-3866.61987906,0.00019451,2]
[330282372,1719227446989,-5148.19,0.00019451,4]
[330282373,1719227446999,-5148.19,0.00019451,4]
[330282374,1719227447008,-151.0,0.00019451,2]
[330282375,1719227447018,-151.0,0.00019451,2]
[330282376,1719227447027,-151.0,0.00019451,2]
[330282377,1719227447036,-157.524814,0.00019451,2]
[330282378,1719227447046,-151.0,0.00019451,2]
[330282379,1719227447055,-151.0,0.00019451,2]
[330282380,1719227447066,-151.0,0.00019451,2]
[330282381,1719227447076,-500.0,0.00019451,4]
[330282382,1719227447089,-390.87837622,0.00019451,4]
[330282383,1719227447103,-151.0,0.00019451,2]
[330282384,1719227447112,-151.0,0.00019451,2]
[330282385,1719227447121,-181.09510387,0.00019452,4]
[330282386,1719227447131,-523.33,0.00019452,4]
[330282387,1719227447142,-558.12517999,0.00019452,4]
[330282388,1719227447151,-882.49,0.00019452,4]
[330282389,1719227447160,-529.45557249,0.00019452,4]
[330282390,1719227447171,-553.31,0.00019452,4]
[330282391,1719227447181,-404.53758266,0.00019452,4]
[330282392,1719227447190,-350.24470532,0.00019452,4]
[330282393,1719227447200,-500.0,0.00019452,4]
[330282394,1719227447209,-536.2,0.00019452,4]
[330282395,1719227447219,-248.62441178,0.00019452,4]
[330282396,1719227448420,-10000.0,0.00018969,2]
[330282397,1719227448431,-251.37558822,0.00019452,4]
[330282398,1719227448441,-620.41,0.00019452,4]
[330282399,1719227448452,-745.38,0.00019452,4]
[330282400,1719227448463,-713.68,0.00019452,4]
[330282401,1719227448473,-947.94,0.00019452,4]
[330282402,1719227448483,-500.0,0.00019452,4]
[330282403,1719227448493,-151.0,0.00019452,2]
[330282404,1719227448504,-153.13896232,0.00019452,4]
[330282405,1719227448514,-500.0,0.00019452,4]
[330282406,1719227448525,-500.0,0.00019452,4]
[330282407,1719227448537,-500.0,0.00019452,4]
[330282408,1719227448548,-500.0,0.00019452,4]
[330282409,1719227448559,-500.0,0.00019452,4]
[330282410,1719227448570,-500.0,0.00019452,4]
[330282411,1719227448580,-500.0,0.00019452,4]
[330282412,1719227448607,-500.0,0.00019452,4]
[330282413,1719227448617,-521.43978477,0.00019452,4]
[330282414,1719227448627,-530.29,0.00019452,4]
[330282415,1719227448637,-500.0,0.00019452,4]
[330282416,1719227448646,-500.0,0.00019452,4]
[330282417,1719227448656,-500.0,0.00019452,4]
[330282418,1719227448667,-500.0,0.00019452,4]
[330282419,1719227448679,-500.0,0.00019452,4]
[330282420,1719227448690,-333.60362957,0.00019452,4]
[330282421,1719227448700,-500.0,0.00019452,4]
[330282422,1719227448711,-1473.52,0.00019452,4]
[330282423,1719227448722,-151.560481,0.00019452,2]
[330282424,1719227448732,-500.0,0.00019452,4]
[330282425,1719227448742,-500.0,0.00019452,4]
[330282426,1719227448751,-500.0,0.00019452,4]
[330282427,1719227448761,-500.0,0.00019452,4]
[330282428,1719227448771,-500.0,0.00019452,4]
[330282429,1719227448781,-500.0,0.00019452,4]
[330282430,1719227448790,-1068.79,0.00019452,4]
[330282431,1719227448800,-500.0,0.00019452,4]
[330282432,1719227448809,-750.11,0.00019452,4]
[330282433,1719227448820,-500.0,0.00019452,4]
[330282434,1719227448830,-500.0,0.00019452,4]
[330282435,1719227448840,-228.34849189,0.00019452,4]
[330282436,1719227448854,-271.65150811,0.00019452,4]
[330282437,1719227448863,-500.0,0.00019452,4]
[330282438,1719227448872,-500.0,0.00019452,4]
[330282439,1719227448882,-510.78,0.00019452,4]
[330282440,1719227448891,-626.73,0.00019452,4]
[330282441,1719227448900,-279.40063122,0.00019452,4]
[330282442,1719227448912,-220.59936878,0.00019452,4]
[330282443,1719227448922,-151.0,0.00019452,2]
[330282444,1719227448931,-207.434169,0.00019452,2]
[330282445,1719227448941,-344.05694543,0.00019452,4]
[330282446,1719227448950,-500.0,0.00019452,4]
[330282447,1719227448959,-151.0,0.00019452,2]
[330282448,1719227448968,-500.0,0.00019452,4]
[330282449,1719227448978,-500.0,0.00019452,4]
[330282450,1719227448987,-500.0,0.00019452,4]
[330282451,1719227448997,-500.0,0.00019452,4]
[330282452,1719227449006,-500.0,0.00019452,4]
[330282453,1719227449015,-522.79,0.00019452,4]
[330282454,1719227449024,-242.02934465,0.00019452,4]
[330282455,1719227449036,-1472.50065535,0.00019452,4]
[330282456,1719227449045,-578.47,0.00019452,4]
[330282457,1719227449054,-500.0,0.00019452,4]
[330282458,1719227449064,-585.27,0.00019452,4]
[330282459,1719227449073,-874.46,0.00019452,4]
[330282460,1719227449088,-500.0,0.00019452,4]
[330282461,1719227449103,-500.0,0.00019452,4]
[330282462,1719227449112,-533.54,0.00019452,4]
[330282463,1719227449124,-1377.28,0.00019452,4]
[330282464,1719227449132,-500.0,0.00019452,4]
[330282465,1719227449143,-250.0,0.00019452,4]
[330282466,1719227449152,-822.94,0.00019452,4]
[330282467,1719227449161,-500.0,0.00019452,4]
[330282468,1719227449169,-965.57,0.00019452,4]
[330282469,1719227449180,-707.57,0.00019452,4]
[330282470,1719227449189,-500.0,0.00019452,4]
[330282471,1719227449199,-500.0,0.00019452,4]
[330282472,1719227449208,-500.0,0.00019452,4]
[330282473,1719227449217,-651.35,0.00019452,4]
[330282474,1719227449227,-500.0,0.00019452,4]
[330282475,1719227449236,-528.6,0.00019452,4]
[330282476,1719227449245,-500.0,0.00019452,4]
[330282477,1719227449255,-1322.51,0.00019452,4]
[330282478,1719227449264,-500.0,0.00019452,4]
[330282479,1719227449274,-1132.75,0.00019452,4]
[330282480,1719227449283,-500.0,0.00019452,4]
[330282481,1719227449294,-982.24,0.00019452,4]
[330282482,1719227449303,-826.6,0.00019452,4]
[330282483,1719227449312,-500.0,0.00019452,4]
[330282484,1719227449322,-500.08,0.00019452,4]
[330282485,1719227449334,-519.36,0.00019452,4]
[330282486,1719227449342,-516.0,0.00019452,4]
[330282487,1719227449352,-852.64,0.00019452,4]
[330282488,1719227449361,-500.0,0.00019452,4]
[330282489,1719227449370,-926.26,0.00019452,4]
[330282490,1719227449379,-500.0,0.00019452,4]
[330282491,1719227449388,-151.0,0.00019452,2]
[330282492,1719227449397,-301.836663,0.00019452,2]
[330282493,1719227449407,-1257.17,0.00019452,4]
[330282494,1719227449416,-1328.66,0.00019452,4]
[330282495,1719227449426,-1171.93,0.00019452,4]
[330282496,1719227449435,-533.85,0.00019452,4]
[330282497,1719227449445,-500.0,0.00019452,4]
[330282498,1719227449454,-500.0,0.00019452,4]
[330282499,1719227449613,-500.0,0.00019452,4]
[330282500,1719227449654,-500.0,0.00019452,4]
[330282501,1719227449663,-500.0,0.00019452,4]
[330282502,1719227449673,-500.0,0.00019452,4]
[330282503,1719227449682,-500.0,0.00019452,4]
[330282504,1719227449692,-540.82,0.00019452,4]
[330282505,1719227449701,-500.0,0.00019452,4]
[330282506,1719227449711,-859.12,0.00019452,4]
[330282507,1719227449720,-500.0,0.00019452,4]
[330282508,1719227449729,-500.0,0.00019452,4]
[330282509,1719227449739,-500.0,0.00019452,4]
[330282510,1719227449748,-500.0,0.00019452,4]
[330282511,1719227449757,-561.55233326,0.00019452,4]
[330282512,1719227449767,-500.0,0.00019452,4]
[330282513,1719227449775,-500.0,0.00019452,4]
[330282514,1719227449785,-500.0,0.00019452,4]
[330282515,1719227449794,-500.0,0.00019452,4]
[330282516,1719227449803,-500.0,0.00019452,4]
[330282517,1719227449812,-500.0,0.00019452,4]
[330282518,1719227449822,-500.0,0.00019452,4]
[330282519,1719227449833,-565.0,0.00019452,4]
[330282520,1719227449842,-636.52,0.00019452,4]
[330282521,1719227449852,-514.53,0.00019452,4]
[330282522,1719227449861,-500.0,0.00019452,4]
[330282523,1719227449870,-2177.97,0.00019452,4]
[330282524,1719227449879,-500.0,0.00019452,4]
[330282525,1719227449888,-500.0,0.00019452,4]
[330282526,1719227449898,-500.0,0.00019452,4]
[330282527,1719227449907,-500.0,0.00019452,4]
[330282528,1719227449916,-500.0,0.00019452,4]
[330282529,1719227449925,-500.0,0.00019452,4]
[330282530,1719227449935,-500.0,0.00019452,4]
[330282531,1719227449943,-767.4,0.00019452,4]
[330282532,1719227449953,-546.78,0.00019452,4]
[330282533,1719227449962,-151.0,0.00019452,2]
[330282534,1719227449971,-151.0,0.00019452,2]
[330282535,1719227449980,-661.75,0.00019452,4]
[330282536,1719227449989,-554.12,0.00019452,4]
[330282537,1719227449999,-500.0,0.00019452,4]
[330282538,1719227450008,-174.17390729,0.00019452,4]
[330282539,1719227450017,-515.54,0.00019452,4]
[330282540,1719227450026,-500.0,0.00019452,4]
[330282541,1719227450035,-500.0,0.00019452,4]
[330282542,1719227450044,-500.0,0.00019452,4]
[330282543,1719227450053,-500.0,0.00019452,4]
[330282544,1719227450062,-500.0,0.00019452,4]
[330282545,1719227450072,-500.0,0.00019452,4]
[330282546,1719227450083,-500.0,0.00019452,4]
[330282547,1719227450092,-151.0,0.00019452,2]
[330282548,1719227450101,-151.0,0.00019452,2]
[330282549,1719227450111,-151.0,0.00019452,2]
[330282550,1719227450123,-570.24,0.00019452,4]
[330282551,1719227450133,-151.0,0.00019452,2]
[330282552,1719227450142,-287.809511,0.00019452,2]
[330282553,1719227450155,-727.74,0.00019452,4]
[330282554,1719227450164,-500.0,0.00019452,4]
[330282555,1719227450174,-500.0,0.00019452,4]
[330282556,1719227450184,-683.43,0.00019452,4]
[330282557,1719227450196,-151.0,0.00019452,2]
[330282558,1719227450206,-151.0,0.00019452,2]
[330282559,1719227450216,-151.0,0.00019452,2]
[330282560,1719227450225,-500.0,0.00019452,4]
[330282561,1719227450234,-537.24,0.00019452,4]
[330282562,1719227450243,-596.74,0.00019452,4]
[330282563,1719227450252,-767.2,0.00019452,4]
[330282564,1719227450261,-713.85,0.00019452,4]
[330282565,1719227450271,-500.0,0.00019452,4]
[330282566,1719227450280,-500.0,0.00019452,4]
[330282567,1719227450289,-500.0,0.00019452,4]
[330282568,1719227450299,-500.0,0.00019452,4]
[330282569,1719227450308,-500.0,0.00019452,4]
[330282570,1719227450318,-500.0,0.00019452,4]
[330282571,1719227450327,-500.0,0.00019452,4]
[330282572,1719227450339,-682.05,0.00019452,4]
[330282573,1719227450348,-151.0,0.00019452,2]
[330282574,1719227450357,-151.0,0.00019452,2]
[330282575,1719227450366,-671.32,0.00019452,4]
[330282576,1719227450375,-268.442932,0.00019452,2]
[330282577,1719227450385,-500.0,0.00019452,4]
[330282578,1719227450394,-500.0,0.00019452,4]
[330282579,1719227450403,-500.0,0.00019452,4]
[330282580,1719227450412,-617.07,0.00019452,4]
[330282581,1719227450421,-685.33,0.00019452,4]
[330282582,1719227450430,-500.0,0.00019452,4]
[330282583,1719227450440,-500.0,0.00019452,4]
[330282584,1719227450449,-500.0,0.00019452,4]
[330282585,1719227450458,-573.61,0.00019452,4]
[330282586,1719227450467,-517.48,0.00019452,4]
[330282587,1719227450476,-509.08,0.00019452,4]
[330282588,1719227450485,-500.0,0.00019452,4]
[330282589,1719227450494,-500.0,0.00019452,4]
[330282590,1719227450504,-500.0,0.00019452,4]
[330282591,1719227450513,-151.0,0.00019452,2]
[330282592,1719227450522,-500.0,0.00019452,4]
[330282593,1719227450531,-500.0,0.00019452,4]
[330282594,1719227450540,-500.0,0.00019452,4]
[330282595,1719227450549,-285.730601,0.00019452,2]
[330282596,1719227450558,-500.0,0.00019452,4]
[330282597,1719227450567,-500.0,0.00019452,4]
[330282598,1719227450577,-500.0,0.00019452,4]
[330282599,1719227450589,-670.93,0.00019452,4]
[330282600,1719227450598,-521.91,0.00019452,4]
[330282601,1719227450607,-500.0,0.00019452,4]
[330282602,1719227450616,-630.83,0.00019452,4]
[330282603,1719227450625,-500.0,0.00019452,4]
[330282604,1719227450634,-500.0,0.00019452,4]
[330282605,1719227450644,-151.0,0.00019452,2]
[330282606,1719227450652,-151.0,0.00019452,2]
[330282607,1719227450662,-151.0,0.00019452,2]
[330282608,1719227450671,-725.26,0.00019452,4]
[330282609,1719227450680,-1014.83,0.00019452,4]
[330282610,1719227450689,-151.0,0.00019452,2]
[330282611,1719227450699,-151.0,0.00019452,2]
[330282612,1719227450708,-151.0,0.00019452,2]
[330282613,1719227450717,-500.0,0.00019452,4]
[330282614,1719227450726,-180.443002,0.00019452,2]
[330282615,1719227450735,-500.0,0.00019452,4]
[330282616,1719227450744,-503.86,0.00019452,4]
[330282617,1719227450754,-500.0,0.00019452,4]
[330282618,1719227450763,-647.73,0.00019452,4]
[330282619,1719227450772,-1099.95,0.00019452,4]
[330282620,1719227450781,-500.0,0.00019452,4]
[330282621,1719227450791,-521.47,0.00019452,4]
[330282622,1719227450800,-354.4027118,0.00019452,4]
[330282623,1719227450809,-500.0,0.00019452,4]
[330282624,1719227450818,-500.0,0.00019452,4]
[330282625,1719227450827,-2287.13,0.00019452,4]
[330282626,1719227450841,-510.53,0.00019452,4]
[330282627,1719227450850,-581.42,0.00019452,4]
[330282628,1719227450859,-500.0,0.00019452,4]
[330282629,1719227450870,-500.0,0.00019452,4]
[330282630,1719227450880,-606.67,0.00019452,4]
[330282631,1719227450890,-500.0,0.00019452,4]
[330282632,1719227450899,-500.0,0.00019452,4]
[330282633,1719227450908,-500.0,0.00019452,4]
[330282634,1719227450917,-500.0,0.00019452,4]
[330282635,1719227450926,-690.29,0.00019452,4]
[330282636,1719227450936,-500.0,0.00019452,4]
[330282637,1719227450945,-1691.07,0.00019452,4]
[330282638,1719227450954,-500.0,0.00019452,4]
[330282639,1719227450964,-500.0,0.00019452,4]
[330282640,1719227450973,-500.0,0.00019452,4]
[330282641,1719227450982,-592.13,0.00019452,4]
[330282642,1719227450991,-500.0,0.00019452,4]
[330282643,1719227451000,-547.8,0.00019452,4]
[330282644,1719227451010,-524.89,0.00019452,4]
[330282645,1719227451019,-557.89,0.00019452,4]
[330282646,1719227451029,-723.74,0.00019452,4]
[330282647,1719227451038,-1679.0,0.00019452,4]
[330282648,1719227451047,-590.08,0.00019452,4]
[330282649,1719227451056,-500.0,0.00019452,4]
[330282650,1719227451065,-500.0,0.00019452,4]
[330282651,1719227451074,-500.0,0.00019452,4]
[330282652,1719227451091,-500.0,0.00019452,4]
[330282653,1719227451106,-500.0,0.00019452,4]
[330282654,1719227451115,-746.8,0.00019452,4]
[330282655,1719227451124,-500.0,0.00019452,4]
[330282656,1719227451133,-151.0,0.00019452,2]
[330282657,1719227451145,-595.07,0.00019452,4]
[330282658,1719227451154,-249.985319,0.00019452,2]
[330282659,1719227451164,-555.54,0.00019452,4]
[330282660,1719227451173,-1436.46,0.00019452,4]
[330282661,1719227451182,-634.31,0.00019452,4]
[330282662,1719227451192,-151.0,0.00019452,2]
[330282663,1719227451202,-356.798257,0.00019452,2]
[330282664,1719227451211,-356.798257,0.00019452,2]
[330282665,1719227451220,-356.798257,0.00019452,2]
[330282666,1719227451230,-691.66,0.00019452,4]
[330282667,1719227451240,-500.0,0.00019452,4]
[330282668,1719227451250,-715.78,0.00019452,4]
[330282669,1719227451259,-500.0,0.00019452,4]
[330282670,1719227451269,-587.85,0.00019452,4]
[330282671,1719227451279,-269.55356511,0.00019452,4]
[330282672,1719227451289,-500.0,0.00019452,4]
[330282673,1719227451301,-582.73,0.00019452,4]
[330282674,1719227451311,-500.0,0.00019452,4]
[330282675,1719227451322,-500.0,0.00019452,4]
[330282676,1719227451335,-500.0,0.00019452,4]
[330282677,1719227451345,-500.0,0.00019452,4]
[330282678,1719227451355,-507.58,0.00019452,4]
[330282679,1719227451365,-500.0,0.00019452,4]
[330282680,1719227451375,-500.0,0.00019452,4]
[330282681,1719227451384,-547.47,0.00019452,4]
[330282682,1719227451394,-649.26,0.00019452,4]
[330282683,1719227451404,-500.0,0.00019452,4]
[330282684,1719227451413,-649.11,0.00019452,4]
[330282685,1719227451423,-645.54491351,0.00019452,4]
[330282686,1719227451433,-151.0,0.00019452,2]
[330282687,1719227451442,-500.0,0.00019452,4]
[330282688,1719227451451,-970.890068,0.00019452,2]
[330282689,1719227451461,-970.890068,0.00019452,2]
[330282690,1719227451471,-970.890068,0.00019452,2]
[330282691,1719227451480,-1471.98,0.00019452,4]
[330282692,1719227451490,-713.27,0.00019452,4]
[330282693,1719227451500,-151.0,0.00019452,2]
[330282694,1719227451509,-151.0,0.00019452,2]
[330282695,1719227451518,-151.0,0.00019452,2]
[330282696,1719227451527,-350.66957905,0.00019452,4]
[330282697,1719227451536,-151.0,0.00019452,2]
[330282698,1719227451545,-151.0,0.00019452,2]
[330282699,1719227451554,-538.933405,0.00019452,2]
[330282700,1719227451564,-262.70734,0.00019452,2]
[330282701,1719227451574,-538.933405,0.00019452,2]
[330282702,1719227451588,-538.933405,0.00019452,2]
[330282703,1719227451598,-879.11,0.00019452,4]
[330282704,1719227451607,-1444.26,0.00019452,4]
[330282705,1719227451617,-151.0,0.00019452,2]
[330282706,1719227451626,-1363.53,0.00019452,4]
[330282707,1719227451639,-301.238756,0.00019452,2]
[330282708,1719227451648,-500.0,0.00019452,4]
[330282709,1719227451658,-538.933405,0.00019452,2]
[330282710,1719227451667,-500.0,0.00019452,4]
[330282711,1719227451676,-547.1,0.00019452,4]
[330282712,1719227451686,-538.933405,0.00019452,2]
[330282713,1719227451696,-538.933405,0.00019452,2]
[330282714,1719227451705,-151.0,0.00019452,2]
[330282715,1719227451714,-500.0,0.00019452,4]
[330282716,1719227451724,-151.0,0.00019452,2]
[330282717,1719227451733,-151.0,0.00019452,2]
[330282718,1719227451742,-323.60867497,0.00019452,4]
[330282719,1719227451751,-151.0,0.00019452,2]
[330282720,1719227451759,-500.0,0.00019452,4]
[330282721,1719227451769,-500.0,0.00019452,4]
[330282722,1719227451778,-1534.65,0.00019452,4]
[330282723,1719227451787,-151.0,0.00019452,2]
[330282724,1719227451796,-151.0,0.00019452,2]
[330282725,1719227451805,-239.159096,0.00019452,2]
[330282726,1719227451814,-518.84040819,0.00019452,4]
[330282727,1719227451823,-500.0,0.00019452,4]
[330282728,1719227451836,-500.0,0.00019452,4]
[330282729,1719227451845,-4481.17,0.00019452,4]
[330282730,1719227451854,-914.55,0.00019452,4]
[330282731,1719227451864,-500.0,0.00019452,4]
[330282732,1719227451873,-500.0,0.00019452,4]
[330282733,1719227451882,-551.65,0.00019452,4]
[330282734,1719227451891,-151.0,0.00019452,2]
[330282735,1719227451900,-160.144262,0.00019452,2]
[330282736,1719227451909,-151.0,0.00019452,2]
[330282737,1719227451919,-151.0,0.00019452,2]
[330282738,1719227451928,-700.84,0.00019452,4]
[330282739,1719227451937,-151.0,0.00019452,2]
[330282740,1719227451946,-730.61,0.00019452,4]
[330282741,1719227451955,-500.0,0.00019452,4]
[330282742,1719227451965,-500.0,0.00019452,4]
[330282743,1719227451974,-546.19,0.00019452,4]
[330282744,1719227451983,-345.118452,0.00019452,2]
[330282745,1719227451992,-345.118452,0.00019452,2]
[330282746,1719227452001,-345.118452,0.00019452,2]
[330282747,1719227452010,-500.0,0.00019452,4]
[330282748,1719227452019,-345.118452,0.00019452,2]
[330282749,1719227452028,-345.118452,0.00019452,2]
[330282750,1719227452037,-345.118452,0.00019452,2]
[330282751,1719227452046,-500.0,0.00019452,4]
[330282752,1719227452055,-12080.04,0.00019452,4]
[330282753,1719227452064,-505.61,0.00019452,4]
[330282754,1719227452073,-593.86,0.00019452,4]
[330282755,1719227452084,-151.0,0.00019452,2]
[330282756,1719227452095,-296.376934,0.00019452,2]
[330282757,1719227452106,-821.74,0.00019452,4]
[330282758,1719227452116,-646.22,0.00019452,4]
[330282759,1719227452125,-151.0,0.00019452,2]
[330282760,1719227452134,-297.661298,0.00019452,2]
[330282761,1719227452145,-237.05867,0.00019452,2]
[330282762,1719227452154,-237.05867,0.00019452,2]
[330282763,1719227452163,-500.0,0.00019452,4]
[330282764,1719227452172,-237.05867,0.00019452,2]
[330282765,1719227452182,-1400.06,0.00019452,4]
[330282766,1719227452192,-237.05867,0.00019452,2]
[330282767,1719227452201,-1547.18,0.00019452,4]
[330282768,1719227452211,-237.05867,0.00019452,2]
[330282769,1719227452220,-500.0,0.00019452,4]
[330282770,1719227452229,-237.05867,0.00019452,2]
[330282771,1719227452238,-500.0,0.00019452,4]
[330282772,1719227452247,-496.27,0.00019452,4]
[330282773,1719227452256,-500.0,0.00019452,4]
[330282774,1719227452265,-1251.17,0.00019452,4]
[330282775,1719227452275,-704.2,0.00019452,4]
[330282776,1719227452284,-500.0,0.00019452,4]
[330282777,1719227452292,-670.95,0.00019452,4]
[330282778,1719227452302,-500.0,0.00019452,4]
[330282779,1719227452311,-2003.2,0.00019452,4]
[330282780,1719227452322,-500.0,0.00019452,4]
[330282781,1719227452334,-1071.8,0.00019452,4]
[330282782,1719227452343,-500.0,0.00019452,4]
[330282783,1719227452353,-662.98,0.00019452,4]
[330282784,1719227452362,-151.0,0.00019452,2]
[330282785,1719227452372,-151.0,0.00019452,2]
[330282786,1719227452381,-500.0,0.00019452,4]
[330282787,1719227452390,-151.0,0.00019452,2]
[330282788,1719227452400,-908.91,0.00019452,4]
[330282789,1719227452409,-500.0,0.00019452,4]
[330282790,1719227452418,-700.85,0.00019452,4]
[330282791,1719227452427,-151.0,0.00019452,2]
[330282792,1719227452436,-260.41273,0.00019452,2]
[330282793,1719227452446,-729.51,0.00019452,4]
[330282794,1719227452455,-500.0,0.00019452,4]
[330282795,1719227452465,-810.58,0.00019452,4]
[330282796,1719227452474,-1187.06,0.00019452,4]
[330282797,1719227452483,-716.9,0.00019452,4]
[330282798,1719227452492,-687.38,0.00019452,4]
[330282799,1719227452502,-500.0,0.00019452,4]
[330282800,1719227452512,-500.0,0.00019452,4]
[330282801,1719227452521,-1135.05,0.00019452,4]
[330282802,1719227452531,-500.0,0.00019452,4]
[330282803,1719227452540,-151.0,0.00019452,2]
[330282804,1719227452549,-151.0,0.00019452,2]
[330282805,1719227452558,-2509.026784,0.00019452,2]
[330282806,1719227452568,-500.0,0.00019452,4]
[330282807,1719227452577,-2509.026784,0.00019452,2]
[330282808,1719227452591,-1116.7,0.00019452,4]
[330282809,1719227452600,-2509.026784,0.00019452,2]
[330282810,1719227452609,-500.0,0.00019452,4]
[330282811,1719227452617,-694.94,0.00019452,4]
[330282812,1719227452626,-1545.37,0.00019452,4]
[330282813,1719227452635,-547.63,0.00019452,4]
[330282814,1719227452644,-2509.026784,0.00019452,2]
[330282815,1719227452654,-2174.81,0.00019452,4]
[330282816,1719227452663,-2509.026784,0.00019452,2]
[330282817,1719227452672,-2509.026784,0.00019452,2]
[330282818,1719227452682,-500.0,0.00019452,4]
[330282819,1719227452691,-500.0,0.00019452,4]